{"text_format":"1","workbook":"xlsx","n_sheets":1,"sheets":["Diplo"],"not_rendered":{"charts":0,"images":6,"macros":1,"external_links":0,"defined_names":7,"comments":0,"pivot_tables":0},"unopened":[],"bounds":{"document_bytes":16777216,"sheet_cells":100000,"rows_first":2000,"rows_last":500,"rows_between":2000,"halvings":0,"cell_chars":16384,"cell_head_chars":4096},"cells_cut":0,"cells_raw":0,"read":"whole","date_system":"1900"}

{"sheet":"Diplo","index":0,"n_rows":109,"n_cols":51,"rows_kept":109,"cut":false,"hidden":false,"merged":[[0,0,1,1],[0,4,1,5],[0,12,1,14],[2,7,4,7],[2,23,4,23],[0,19,1,21],[0,9,1,9],[3,3,4,3]]}
["YOUR ARMY",null,null,null,{"$f":"SUM(D:D)+SUM(H$6:H$1048576)","v":0},null,null,null,null,{"$f":"IF(E1=0,\"you are nothing...\",IF(SUM(Q6:Q45)+SUM(X:X)=0,\"nothing to join…\",IF(AND(E1<>0,E1>=1.25*T1),\"JOIN !\",\"YOU ARE WEAK !\")))","v":"you are nothing..."},null,null,"OPP. ARMY",null,null,null,null,null,null,{"$f":"SUM(Q:Q)+SUM(X$6:X$1048576)","v":0},null,null,null,null,{"$f":"COUNTIF(AT2:AT81,\">0\")+P4","v":0},"NUM","NAME","PRICE","EXP","VOL","ALLIG","JOIN","MJOINER","canJoin","AllArmyJoin",null,null,null,null,null,null,null,"NAME","PRICE","EXP","VOL","ALLIG","join","rest exp"]
[null,null,null,null,null,null,null,null,null,null,null,null,null,null,null,null,null,null,null,null,null,null,null,null,null,1,{"$f":"AN3","v":""},{"$f":"IFERROR(VLOOKUP(AA2,AllCrCopy,2,FALSE), 0)","v":0},{"$f":"IFERROR(VLOOKUP(AA2,AllCrCopy,3,FALSE),0)","v":0},{"$f":"IFERROR(VLOOKUP(AA2,AllCrCopy,4,FALSE),0)","v":0},{"$f":"IFERROR(VLOOKUP(AA2,AllCrCopy,5,FALSE),0)","v":0},{"$f":"IF(OR(AE2=0,(AND(AG2>0,IF(OR($J$20=0,ABS($J$20-AE2)<=1,ABS($J$20-AE2)=4),TRUE,FALSE),IF(OR($J$21=0,ABS($J$21-AE2)<=1,ABS($J$21-AE2)=4),TRUE,FALSE),IF(OR($J$22=0,ABS($J$22-AE2)<=1,ABS($J$22-AE2)=4),TRUE,FALSE),IF(OR($J$23=0,ABS($J$23-AE2)<=1,ABS($J$23-AE2)=4),TRUE,FALSE),IF(OR($J$24=0,ABS($J$24-AE2)<=1,ABS($J$24-AE2)=4),TRUE,FALSE)))),1,0)","v":1},{"$f":"IF(AB2>0,1-($H$3<AC2),0)","v":0},{"$f":"IF(1-AI2,0,IFERROR(VLOOKUP(AA2,AllCrCopy,6,FALSE),0)*AF2)","v":0},{"$f":"$J$3<=0","v":true},null,"№П/П","ПОЗ В МАСС","№ СТРОКИ","NAME!!!!",null,null,{"$f":"M6","v":"S T R O N G H O L D"}]
[null,null,null,null,"Diplomat Hero LVL",null,null,{"$f":"IF(OR(G3=0,AND(G4<>1,G4<>2,G4<>3,G4<>4,G4<>5),AND(G5<>0,G5<>1)),0,120*G4+0.1*120*G4*(G3-1))","v":0},null,{"$f":"CEILING(T1*1.25,1)-E1","v":0},null,null,null,null,null,null,null,null,null,"Diplomat Hero LVL",null,null,null,{"$f":"120*W4+0.1*120*W4*(W3-1)+W5*0.1*120*W4","v":0},null,2,{"$f":"AN4","v":""},0,0,0,0,{"$f":"IF(OR(AE3=0,(AND(AG3>0,IF(OR($J$20=0,ABS($J$20-AE3)<=1,ABS($J$20-AE3)=4),TRUE,FALSE),IF(OR($J$21=0,ABS($J$21-AE3)<=1,ABS($J$21-AE3)=4),TRUE,FALSE),IF(OR($J$22=0,ABS($J$22-AE3)<=1,ABS($J$22-AE3)=4),TRUE,FALSE),IF(OR($J$23=0,ABS($J$23-AE3)<=1,ABS($J$23-AE3)=4),TRUE,FALSE),IF(OR($J$24=0,ABS($J$24-AE3)<=1,ABS($J$24-AE3)=4),TRUE,FALSE)))),1,0)","v":1},{"$f":"IF(AB3>0,1-($H$3<AC3),0)","v":0},0,{"$f":"$J$3<=0","v":true},null,1,{"$f":"IFERROR(MATCH(1,AY3:AY81,0),0)","v":0},{"$f":"2+AL3","v":2},{"$f":"IF(AL3>0,INDIRECT(\"AQ\"&AM3),\"\")","v":""},null,null,{"$f":"M7","v":"Behemoth"},{"$f":"N7","v":2750},{"$f":"O7","v":630},{"$f":"P7","v":0},0,{"$f":"K7","v":{"$error":"#VALUE!"}},{"$f":"L7","v":{"$error":"#VALUE!"}},null,{"$f":"IF(AT3>0,1,0)","v":0}]
["Heroes NUMBER",null,{"$f":"AB37","v":0},{"$f":"(C4+C5)*100","v":0},"Diplomat Skill (1-5)",null,null,null,{"$f":"COUNTIF(C7:C45,\">0\")+COUNTIF(G7:G45,\">0\")+C4","v":0},{"$f":"IF( I4>7,\"You have >7 stacks\",\"\")","v":""},null,null,"Heroes NUMBER",null,null,null,{"$f":"(P4+P5)*100","v":0},null,null,"Diplomat Skill (1-5)",null,null,null,null,null,3,"",0,0,0,0,1,0,0,true,null,2,{"$f":"IFERROR(MATCH(1,INDIRECT(\"AY\"& AM3+1 &\":AY82\"),0),0)","v":0},{"$f":"AL4+AM3","v":2},{"$f":"IF(AL4>0,INDIRECT(\"AQ\"&AM4),\"\")","v":""},null,null,{"$f":"M8","v":"Thunderbird"},{"$f":"N8","v":1800},{"$f":"O8","v":406},{"$f":"P8","v":0},0,{"$error":"#VALUE!"},{"$error":"#VALUE!"},null,{"$f":"IF(AT4>0,1,0)","v":0}]
["Heroes LVL",null,null,null,"DiploMEDAL (0/1)",null,null,null,null,null,null,null,"Heroes LVL",null,null,null,0,null,null,"DiploMEDAL (0/1)",null,null,null,null,null,4,"",0,0,0,0,1,0,0,true,null,3,0,2,"",null,null,"Gnasher",4000,800,0,0,{"$error":"#VALUE!"},{"$error":"#VALUE!"},null,0]
["S T R O N G H O L D",null,null,null,"H A V E N",null,null,null,null,null,"join","rest exp","S T R O N G H O L D",null,null,null,null,{"$f":"IF(SUM(R7:R16)=0,0,\"join\")","v":{"$error":"#VALUE!"}},{"$f":"IF(SUM(S7:S16)=0,0,\"rest exp\")","v":{"$error":"#VALUE!"}},"H A V E N",null,null,null,null,null,5,"",0,0,0,0,1,0,0,true,null,4,0,2,"",null,null,"Sea Monster",0,624,0,0,{"$error":"#VALUE!"},{"$error":"#VALUE!"},null,0]
["Behemoth",630,null,{"$f":"B7*C7","v":0},"Angel",620,null,{"$f":"F7*G7","v":0},null,null,{"$f":"IF(ROUNDDOWN($H$3/O7,0)<=CHOOSE($G$4+$G$5,0.3,0.4,0.5,0.6,0.7,0.8)*P7,ROUNDDOWN($H$3/O7,0),ROUNDDOWN(CHOOSE($G$4+$G$5,0.3,0.4,0.5,0.6,0.7,0.8)*P7,0))","v":{"$error":"#VALUE!"}},{"$f":"IF(K7=0,0,IF(CHOOSE($G$4+$G$5,0.3,0.4,0.5,0.6,0.7,0.8)*P7-K7>0,$H$3-O7*K7,0))","v":{"$error":"#VALUE!"}},"Behemoth",2750,630,null,{"$f":"O7*P7","v":0},{"$f":"IF(ROUNDDOWN($H$3/V7,0)<=CHOOSE($G$4+$G$5,0.3,0.4,0.5,0.6,0.7,0.8)*W7,ROUNDDOWN($H$3/V7,0),ROUNDDOWN(CHOOSE($G$4+$G$5,0.3,0.4,0.5,0.6,0.7,0.8)*W7,0))","v":{"$error":"#VALUE!"}},{"$f":"IF(R7=0,0,IF(CHOOSE($G$4+$G$5,0.3,0.4,0.5,0.6,0.7,0.8)*W7-R7>0,$H$3-V7*R7,0))","v":{"$error":"#VALUE!"}},"Angel",4000,620,null,{"$f":"V7*W7","v":0},null,6,"",0,0,0,0,1,0,0,true,null,5,0,2,"",null,null,"Cyclops",750,203,0,0,{"$error":"#VALUE!"},{"$error":"#VALUE!"},null,0]
["Thunderbird",406,null,0,"Champion",320,null,0,null,null,{"$f":"IF(ROUNDDOWN($H$3/O8,0)<=CHOOSE($G$4+$G$5,0.3,0.4,0.5,0.6,0.7,0.8)*P8,ROUNDDOWN($H$3/O8,0),ROUNDDOWN(CHOOSE($G$4+$G$5,0.3,0.4,0.5,0.6,0.7,0.8)*P8,0))","v":{"$error":"#VALUE!"}},{"$f":"IF(K8=0,0,IF(CHOOSE($G$4+$G$5,0.3,0.4,0.5,0.6,0.7,0.8)*P8-K8>0,$H$3-O8*K8,0))","v":{"$error":"#VALUE!"}},"Thunderbird",1800,406,null,0,{"$error":"#VALUE!"},{"$error":"#VALUE!"},"Champion",2000,320,null,0,null,7,"",0,0,0,0,1,0,0,true,null,6,0,2,"",null,null,"Ogre Mage",450,130,0,0,{"$error":"#VALUE!"},{"$error":"#VALUE!"},null,0]
["Gnasher",800,null,0,"Catapulte",800,null,0,"COST:",{"$f":"AH27","v":0},{"$error":"#VALUE!"},{"$error":"#VALUE!"},"Gnasher",4000,800,null,0,{"$error":"#VALUE!"},{"$error":"#VALUE!"},"Catapulte",4000,800,null,0,null,null,null,null,null,null,null,null,null,null,null,null,7,0,2,"",null,null,"Nomad",150,52,0,0,{"$error":"#VALUE!"},{"$error":"#VALUE!"},null,0]
["Sea Monster",624,null,0,"Crusader",124,null,0,null,{"$f":"IF(Y1>7,\">7 Creatures\",\"\")","v":""},{"$error":"#VALUE!"},{"$error":"#VALUE!"},"Sea Monster",0,624,null,0,{"$error":"#VALUE!"},{"$error":"#VALUE!"},"Crusader",650,124,null,0,null,null,null,null,null,null,null,null,null,null,null,null,null,null,null,null,null,null,"Harpy",110,39,0,0,{"$error":"#VALUE!"},{"$error":"#VALUE!"},null,0]
["Cyclops",203,null,0,"Monk",107,null,0,{"$f":"AF20","v":0},{"$f":"AA20","v":""},{"$error":"#VALUE!"},{"$error":"#VALUE!"},"Cyclops",750,203,null,0,{"$error":"#VALUE!"},{"$error":"#VALUE!"},"Monk",550,107,null,0,null,null,null,null,null,null,null,null,null,null,null,null,null,null,null,null,null,null,"Mermaid",0,39,0,0,{"$error":"#VALUE!"},{"$error":"#VALUE!"},null,0]
["Ogre Mage",130,null,0,"Ballista",44,null,0,{"$f":"AF21","v":0},{"$f":"AA21","v":""},{"$error":"#VALUE!"},{"$error":"#VALUE!"},"Ogre Mage",450,130,null,0,{"$error":"#VALUE!"},{"$error":"#VALUE!"},"Ballista",190,44,null,0,null,null,null,null,null,null,null,null,null,null,null,null,null,null,null,null,null,null,"Centaur",40,18,0,0,{"$error":"#VALUE!"},{"$error":"#VALUE!"},null,0]
["Nomad",52,null,0,"Pikeman",35,null,{"$f":"F13*G13","v":0},0,"",{"$error":"#VALUE!"},{"$error":"#VALUE!"},"Nomad",150,52,null,0,{"$error":"#VALUE!"},{"$error":"#VALUE!"},"Pikeman",150,35,null,{"$f":"V13*W13","v":0},null,null,null,null,null,null,null,null,null,null,null,null,null,null,null,1,null,null,"Berserker",20,8,0,0,{"$error":"#VALUE!"},{"$error":"#VALUE!"},null,0]
["Harpy",39,null,0,"Crossbowman",9,null,0,0,{"$f":"AA23","v":""},{"$error":"#VALUE!"},{"$error":"#VALUE!"},"Harpy",110,39,null,0,{"$error":"#VALUE!"},{"$error":"#VALUE!"},"Crossbowman",32,9,null,{"$f":"V14*W14","v":0},null,null,null,null,null,null,null,null,null,null,null,null,null,null,null,2,null,null,"A C A D E M Y",null,null,null,null,null,null,null,0]
["Mermaid",39,null,0,"Squire",7,null,0,0,"",{"$error":"#VALUE!"},{"$error":"#VALUE!"},"Mermaid",0,39,null,0,{"$error":"#VALUE!"},{"$error":"#VALUE!"},"Squire",26,7,null,{"$f":"V15*W15","v":0},null,null,null,null,null,null,null,null,null,null,null,null,null,null,null,3,null,null,"Dragon Golem",4000,630,0,1,{"$f":"K19","v":{"$error":"#VALUE!"}},{"$f":"L19","v":{"$error":"#VALUE!"}},null,0]
["Centaur",18,null,0,"Peasant",4,null,{"$f":"F16*G16","v":0},0,"",{"$error":"#VALUE!"},{"$error":"#VALUE!"},"Centaur",40,18,null,0,{"$error":"#VALUE!"},{"$error":"#VALUE!"},"Peasant",15,4,null,{"$f":"V16*W16","v":0},null,null,null,null,null,null,null,null,null,null,null,null,null,null,null,4,null,null,"Titan",4000,616,0,1,{"$error":"#VALUE!"},{"$error":"#VALUE!"},null,0]
["Berserker",8,null,0,"N E C R O P O L I S",null,null,null,0,"",{"$error":"#VALUE!"},{"$error":"#VALUE!"},"Berserker",20,8,null,0,{"$f":"IF(SUM(R18:R30)=0,0,\"join\")","v":{"$error":"#VALUE!"}},{"$f":"IF(SUM(S18:S30)=0,0,\"rest exp\")","v":{"$error":"#VALUE!"}},"N E C R O P O L I S",null,null,null,null,null,"CREATURES",null,null,null,null,null,null,null,null,null,null,null,null,null,5,null,null,"Evil Sorceres",4000,750,0,1,{"$error":"#VALUE!"},{"$error":"#VALUE!"},null,0]
["A C A D E M Y",null,null,null,"Dark Champion",1000,null,{"$f":"F18*G18","v":0},null,null,"join","rest exp","A C A D E M Y",null,null,null,null,{"$f":"IF(ROUNDDOWN($H$3/V18,0)<=CHOOSE($G$4+$G$5,0.3,0.4,0.5,0.6,0.7,0.8)*W18,ROUNDDOWN($H$3/V18,0),ROUNDDOWN(CHOOSE($G$4+$G$5,0.3,0.4,0.5,0.6,0.7,0.8)*W18,0))","v":{"$error":"#VALUE!"}},{"$f":"IF(R18=0,0,IF(CHOOSE($G$4+$G$5,0.3,0.4,0.5,0.6,0.7,0.8)*W18-R18>0,$H$3-V18*R18,0))","v":{"$error":"#VALUE!"}},"Dark Champion",4000,1000,null,{"$f":"V18*W18","v":0},null,null,null,null,null,null,null,null,null,null,null,null,null,null,null,null,null,null,"Naga",850,175,0,1,{"$error":"#VALUE!"},{"$error":"#VALUE!"},null,0]
["Dragon Golem",630,null,{"$f":"B19*C19","v":0},"Bone Dragon",621,null,0,null,"YA",{"$error":"#VALUE!"},{"$f":"IF(K19=0,0,IF(CHOOSE($G$4+$G$5,0.3,0.4,0.5,0.6,0.7,0.8)*P19-K19>0,$H$3-O19*K19,0))","v":{"$error":"#VALUE!"}},"Dragon Golem",4000,630,null,{"$f":"O19*P19","v":0},{"$error":"#VALUE!"},{"$error":"#VALUE!"},"Bone Dragon",4000,621,null,0,null,"NUM","NAME","canJoin","EXP","FreeEXP","restEXP","realJoin","PRICE","COSTJoin","JOIN","ToChange",null,null,null,0,null,null,"Genie",550,120,0,1,{"$error":"#VALUE!"},{"$error":"#VALUE!"},null,0]
["Titan",616,null,{"$f":"B20*C20","v":0},"Devil",614,null,0,"Order",{"$f":"IF(OR(AN27>0,SUM(C19:C27)>0),1,0)","v":0},{"$error":"#VALUE!"},{"$error":"#VALUE!"},"Titan",4000,616,null,{"$f":"O20*P20","v":0},{"$error":"#VALUE!"},{"$error":"#VALUE!"},"Devil",4000,614,null,0,null,1,{"$f":"VLOOKUP(Z20,ChCr,2,FALSE)","v":""},{"$f":"VLOOKUP(Z20,ChCr,9,FALSE)","v":0},{"$f":"VLOOKUP(Z20,ChCr,4,FALSE)","v":0},{"$f":"H3","v":0},{"$f":"AD20-(AB20*AC20)","v":0},{"$f":"IFERROR((AD20-AE20)/AC20,0)","v":0},{"$f":"VLOOKUP(Z20,ChCr,3,FALSE)","v":0},{"$f":"AG20*AF20/2","v":0},{"$f":"VLOOKUP(Z20,ChCr,7,FALSE)","v":1},{"$f":"IF(AND(AA20=\"\",AA21<>\"\"),Z21,\"\")","v":""},null,null,null,1,null,null,"Gold Golem",240,56,0,1,{"$error":"#VALUE!"},{"$error":"#VALUE!"},null,0]
["Evil Sorceres",750,null,{"$f":"B21*C21","v":0},"Vampire",275,null,0,"Life",{"$f":"IF(OR(AN28>0,SUM(G7:G16)>0),2,0)","v":0},{"$error":"#VALUE!"},{"$error":"#VALUE!"},"Evil Sorceres",4000,750,null,{"$f":"O21*P21","v":0},{"$error":"#VALUE!"},{"$error":"#VALUE!"},"Vampire",1100,275,null,0,null,2,"",0,0,{"$f":"AE20","v":0},{"$f":"AE20-IF(ROUNDDOWN(AD21/AC21,0)>AB21,AB21,ROUNDDOWN(AD21/AC21,0))*AC21","v":{"$error":"#DIV/0!"}},{"$f":"IFERROR((AD21-AE21)/AC21,0)","v":0},0,{"$f":"AG21*AF21/2","v":0},1,"",null,null,null,null,null,null,"Mage",160,38,0,1,{"$error":"#VALUE!"},{"$error":"#VALUE!"},null,0]
["Naga",175,null,{"$f":"B22*C22","v":0},"Venom Spawn",201,null,0,"Nature",{"$f":"IF(OR(AN29>0,SUM(C29:C45)>0),3,0)","v":0},{"$error":"#VALUE!"},{"$error":"#VALUE!"},"Naga",850,175,null,{"$f":"O22*P22","v":0},{"$error":"#VALUE!"},{"$error":"#VALUE!"},"Venom Spawn",1100,201,null,0,null,3,"",0,0,{"$error":"#DIV/0!"},{"$error":"#DIV/0!"},0,0,0,1,"",null,null,null,null,null,null,"Dwarf",28,8,0,1,{"$error":"#VALUE!"},{"$error":"#VALUE!"},null,0]
["Genie",120,null,0,"Ice Demon",157,null,0,"Chaos",{"$f":"IF(OR(AN30>0,SUM(G32:G45)>0),4,0)","v":0},{"$error":"#VALUE!"},{"$error":"#VALUE!"},"Genie",550,120,null,0,{"$error":"#VALUE!"},{"$error":"#VALUE!"},"Ice Demon",850,157,null,0,null,4,"",0,0,{"$error":"#DIV/0!"},{"$error":"#DIV/0!"},0,0,0,1,"",null,null,null,null,null,null,"Halfling",22,7,0,1,{"$error":"#VALUE!"},{"$error":"#VALUE!"},null,0]
["Gold Golem",56,null,0,"Cerberus",44,null,0,"Death",{"$f":"IF(OR(AN31>0,SUM(G18:G30)>0),5,0)","v":0},{"$error":"#VALUE!"},{"$error":"#VALUE!"},"Gold Golem",240,56,null,0,{"$error":"#VALUE!"},{"$error":"#VALUE!"},"Cerberus",190,44,null,0,null,5,"",0,0,{"$error":"#DIV/0!"},{"$error":"#DIV/0!"},0,0,0,1,"",null,null,null,"joiner",null,null,"P R E S E R V E",null,null,null,null,null,null,null,0]
["Mage",38,null,0,"Ghost",35,null,0,"min",{"$f":"MIN(J28:J32)","v":0},{"$error":"#VALUE!"},{"$error":"#VALUE!"},"Mage",160,38,null,0,{"$error":"#VALUE!"},{"$error":"#VALUE!"},"Ghost",140,35,null,0,null,6,"",0,0,{"$error":"#DIV/0!"},{"$error":"#DIV/0!"},0,0,0,1,"",null,-1,"-",null,null,null,"Faerie Dragon",4000,612,0,3,{"$f":"K29","v":{"$error":"#VALUE!"}},{"$f":"L29","v":{"$error":"#VALUE!"}},null,0]
["Dwarf",8,null,0,"Gargoyle",38,null,0,"max",{"$f":"MAX(J28:J32)","v":0},{"$error":"#VALUE!"},{"$error":"#VALUE!"},"Dwarf",28,8,null,0,{"$error":"#VALUE!"},{"$error":"#VALUE!"},"Gargoyle",160,38,null,0,null,7,"",0,0,{"$error":"#DIV/0!"},{"$error":"#DIV/0!"},0,0,0,1,null,null,0,"Barb",null,null,null,"Phoenix",4000,609,0,3,{"$error":"#VALUE!"},{"$error":"#VALUE!"},null,0]
["Halfling",7,null,0,"Mummy",28,null,0,null,"OA",{"$error":"#VALUE!"},{"$error":"#VALUE!"},"Halfling",22,7,null,0,{"$error":"#VALUE!"},{"$error":"#VALUE!"},"Mummy",170,28,null,0,null,null,null,null,null,null,null,null,null,{"$f":"SUM(AH20:AH26)","v":0},null,{"$f":"MIN(AJ20:AJ25)","v":0},null,1,"Order",{"$f":"COUNTIF($AB$30:$AB$36,\"=\" & AM27)","v":0},null,null,"Gargantuan",4000,800,0,3,{"$error":"#VALUE!"},{"$error":"#VALUE!"},null,0]
["P R E S E R V E",null,null,null,"Skeleton",6,null,0,"Order",{"$f":"IF(SUM(P19:P27)>0,1,\"\")","v":""},{"$f":"IF(SUM(K29:K45)=0,0,\"join\")","v":{"$error":"#VALUE!"}},"rest exp","P R E S E R V E",null,null,null,null,{"$error":"#VALUE!"},{"$error":"#VALUE!"},"Skeleton",22,6,null,0,null,"JOINER",null,null,null,null,null,null,null,null,null,null,null,2,"Life",{"$f":"COUNTIF($AB$30:$AB$36,\"=\" & AM28)","v":0},null,null,"Mantis",4000,614,0,3,{"$error":"#VALUE!"},{"$error":"#VALUE!"},null,0]
["Faerie Dragon",612,null,{"$f":"B29*C29","v":0},"Imp",5,null,0,"Life",{"$f":"IF(SUM(W7:W16)>0,2,\"\")","v":""},{"$error":"#VALUE!"},{"$f":"IF(K29=0,0,IF(CHOOSE($G$4+$G$5,0.3,0.4,0.5,0.6,0.7,0.8)*P29-K29>0,$H$3-O29*K29,0))","v":{"$error":"#VALUE!"}},"Faerie Dragon",4000,612,null,{"$f":"O29*P29","v":0},{"$error":"#VALUE!"},{"$error":"#VALUE!"},"Imp",18,5,null,0,null,"HEROES","RACA","RacaWhtSps",null,null,null,null,null,null,null,null,null,3,"Nature",{"$f":"COUNTIF($AB$30:$AB$36,\"=\" & AM29)","v":0},null,null,"Griffin",800,154,0,3,{"$error":"#VALUE!"},{"$error":"#VALUE!"},null,0]
["Phoenix",609,null,0,"Zombie",8,null,0,"Nature",{"$f":"IF(SUM(P29:P45)>0,3,\"\")","v":""},{"$error":"#VALUE!"},{"$error":"#VALUE!"},"Phoenix",4000,609,null,0,{"$error":"#VALUE!"},{"$error":"#VALUE!"},"Zombie",35,8,null,0,null,1,"-",{"$f":"IF(AA30=\"\",\"-\",AA30)","v":"-"},null,null,null,null,null,null,null,null,null,4,"Chaos",{"$f":"COUNTIF($AB$30:$AB$36,\"=\" & AM30)","v":0},null,null,"Unicorn",650,120,0,3,{"$error":"#VALUE!"},{"$error":"#VALUE!"},null,0]
["Gargantuan",800,null,0,"A S Y L U M",null,null,null,"Chaos",{"$f":"IF(SUM(W32:W45)>0,4,\"\")","v":""},{"$error":"#VALUE!"},{"$error":"#VALUE!"},"Gargantuan",4000,800,null,0,{"$f":"IF(SUM(R32:R45)=0,0,\"join\")","v":{"$error":"#VALUE!"}},{"$f":"IF(SUM(S32:S45)=0,0,\"rest exp\")","v":{"$error":"#VALUE!"}},"A S Y L U M",null,null,null,null,null,2,"-",{"$f":"IF(AA31=\"\",\"-\",AA31)","v":"-"},null,null,null,null,null,null,null,null,null,5,"Death",{"$f":"COUNTIF($AB$30:$AB$36,\"=\" & AM31)","v":0},null,null,"Waspwort",550,105,0,3,{"$error":"#VALUE!"},{"$error":"#VALUE!"},null,0]
["Mantis",614,null,0,"Black Dragon",1233,null,{"$f":"F32*G32","v":0},"Death",{"$f":"IF(SUM(W18:W30)>0,5,\"\")","v":""},{"$error":"#VALUE!"},{"$error":"#VALUE!"},"Mantis",4000,614,null,0,{"$f":"IF(ROUNDDOWN($H$3/V32,0)<=CHOOSE($G$4+$G$5,0.3,0.4,0.5,0.6,0.7,0.8)*W32,ROUNDDOWN($H$3/V32,0),ROUNDDOWN(CHOOSE($G$4+$G$5,0.3,0.4,0.5,0.6,0.7,0.8)*W32,0))","v":{"$error":"#VALUE!"}},{"$f":"IF(R32=0,0,IF(CHOOSE($G$4+$G$5,0.3,0.4,0.5,0.6,0.7,0.8)*W32-R32>0,$H$3-V32*R32,0))","v":{"$error":"#VALUE!"}},"Black Dragon",8000,1233,null,{"$f":"V32*W32","v":0},null,3,"-","-",null,null,null,null,null,null,null,null,null,null,null,null,null,null,"Earth Elemental",375,65,0,3,{"$error":"#VALUE!"},{"$error":"#VALUE!"},null,0]
["Griffin",154,null,0,"Hydra",617,null,0,null,null,{"$error":"#VALUE!"},{"$error":"#VALUE!"},"Griffin",800,154,null,0,{"$error":"#VALUE!"},{"$error":"#VALUE!"},"Hydra",4000,617,null,0,null,4,"-","-",null,null,null,null,null,null,null,null,null,null,null,null,null,null,"Fire Elemental",350,72,0,3,{"$error":"#VALUE!"},{"$error":"#VALUE!"},null,0]
["Unicorn",120,null,0,"Mega",1500,null,0,null,null,{"$error":"#VALUE!"},{"$error":"#VALUE!"},"Unicorn",650,120,null,0,{"$error":"#VALUE!"},{"$error":"#VALUE!"},"Mega",8000,1500,null,0,null,5,"-","-",null,null,null,null,null,null,null,null,null,null,null,null,null,null,"Air Elemental",350,77,0,3,{"$error":"#VALUE!"},{"$error":"#VALUE!"},null,0]
["Waspwort",105,null,0,"Goblin Knight",157,null,0,null,null,{"$error":"#VALUE!"},{"$error":"#VALUE!"},"Waspwort",550,105,null,0,{"$error":"#VALUE!"},{"$error":"#VALUE!"},"Goblin Knight",1000,157,null,0,null,6,"-","-",null,null,null,null,null,null,null,null,null,null,null,null,null,null,"Water Elemental",350,90,0,3,{"$error":"#VALUE!"},{"$error":"#VALUE!"},null,0]
["Earth Elemental",65,null,0,"Efreet",161,null,0,null,null,{"$error":"#VALUE!"},{"$error":"#VALUE!"},"Earth Elemental",375,65,null,0,{"$error":"#VALUE!"},{"$error":"#VALUE!"},"Efreet",850,161,null,0,null,7,"-","-",null,null,null,null,null,null,null,null,null,null,null,null,null,null,"White Tiger",220,53,0,3,{"$error":"#VALUE!"},{"$error":"#VALUE!"},null,0]
["Fire Elemental",72,null,0,"Nightmare",148,null,0,null,null,{"$error":"#VALUE!"},{"$error":"#VALUE!"},"Fire Elemental",350,72,null,0,{"$error":"#VALUE!"},{"$error":"#VALUE!"},"Nightmare",800,148,null,0,null,null,null,{"$f":"7-COUNTIF(AB30:AB36,\"-\")","v":0},null,null,null,null,null,null,null,null,null,null,null,null,null,null,"Elf",190,43,0,3,{"$error":"#VALUE!"},{"$error":"#VALUE!"},null,0]
["Air Elemental",77,null,0,"Minotaur",53,null,0,null,null,{"$error":"#VALUE!"},{"$error":"#VALUE!"},"Air Elemental",350,77,null,0,{"$error":"#VALUE!"},{"$error":"#VALUE!"},"Minotaur",230,53,null,0,null,null,null,null,null,null,null,null,null,null,null,null,null,null,null,null,null,null,"Satyr",170,39,0,3,{"$error":"#VALUE!"},{"$error":"#VALUE!"},null,0]
["Water Elemental",90,null,0,"Medusa",52,null,0,null,null,{"$error":"#VALUE!"},{"$error":"#VALUE!"},"Water Elemental",350,90,null,0,{"$error":"#VALUE!"},{"$error":"#VALUE!"},"Medusa",220,52,null,0,null,null,null,null,null,null,null,null,null,null,null,null,null,null,null,null,null,null,"Wolf",36,9,0,3,{"$error":"#VALUE!"},{"$error":"#VALUE!"},null,0]
["White Tiger",53,null,0,"Troll",54,null,0,null,null,{"$error":"#VALUE!"},{"$error":"#VALUE!"},"White Tiger",220,53,null,0,{"$error":"#VALUE!"},{"$error":"#VALUE!"},"Troll",230,54,null,0,null,null,null,null,null,null,null,null,null,null,null,null,null,null,null,null,null,null,"Sprite",22,10,0,3,{"$error":"#VALUE!"},{"$error":"#VALUE!"},null,0]
["Elf",43,null,0,"Beholder",51,null,0,null,null,{"$error":"#VALUE!"},{"$error":"#VALUE!"},"Elf",190,43,null,0,{"$error":"#VALUE!"},{"$error":"#VALUE!"},"Beholder",220,51,null,0,null,null,null,null,null,null,null,null,null,null,null,null,null,null,null,null,null,null,"Leprechaun",24,7,0,3,{"$error":"#VALUE!"},{"$error":"#VALUE!"},null,0]
["Satyr",39,null,0,"Orc",10,null,0,null,null,{"$error":"#VALUE!"},{"$error":"#VALUE!"},"Satyr",170,39,null,0,{"$error":"#VALUE!"},{"$error":"#VALUE!"},"Orc",34,10,null,0,null,null,null,null,null,null,null,null,null,null,null,null,null,null,null,null,null,null,{"$f":"T6","v":"H A V E N"},null,null,null,null,null,null,null,0]
["Wolf",9,null,0,"Bandit",6,null,0,null,null,{"$error":"#VALUE!"},{"$error":"#VALUE!"},"Wolf",36,9,null,0,{"$error":"#VALUE!"},{"$error":"#VALUE!"},"Bandit",20,6,null,0,null,null,null,null,null,null,null,null,null,null,null,null,null,null,null,null,null,null,{"$f":"T7","v":"Angel"},{"$f":"U7","v":4000},{"$f":"V7","v":620},{"$f":"W7","v":0},2,{"$f":"R7","v":{"$error":"#VALUE!"}},{"$f":"S7","v":{"$error":"#VALUE!"}},null,0]
["Sprite",10,null,0,"Troglodyte",8,null,0,null,null,{"$error":"#VALUE!"},{"$error":"#VALUE!"},"Sprite",22,10,null,0,{"$error":"#VALUE!"},{"$error":"#VALUE!"},"Troglodyte",28,8,null,0,null,null,null,null,null,null,null,null,null,null,null,null,null,null,null,null,null,null,{"$f":"T8","v":"Champion"},{"$f":"U8","v":2000},{"$f":"V8","v":320},{"$f":"W8","v":0},2,{"$error":"#VALUE!"},{"$error":"#VALUE!"},null,0]
["Leprechaun",7,null,0,"Pirate",7,null,0,null,null,{"$error":"#VALUE!"},{"$error":"#VALUE!"},"Leprechaun",24,7,null,0,{"$error":"#VALUE!"},{"$error":"#VALUE!"},"Pirate",22,7,null,0,null,null,null,null,null,null,null,null,null,null,null,null,null,null,null,null,null,null,"Catapulte",3000,800,0,2,{"$error":"#VALUE!"},{"$error":"#VALUE!"},null,0]
[null,null,null,null,null,null,null,null,null,null,{"$f":"IF(ROUNDDOWN($H$3/O41,0)<=CHOOSE($G$4+$G$5,0.3,0.4,0.5,0.6,0.7,0.8)*P41,ROUNDDOWN($H$3/O41,0),ROUNDDOWN(CHOOSE($G$4+$G$5,0.3,0.4,0.5,0.6,0.7,0.8)*P41,0))","v":{"$error":"#VALUE!"}},{"$f":"IF(K46=0,0,IF(CHOOSE(G4,0.3,0.4,0.5,0.6,0.7)*P41-K46>0,$H$3-O41*K46,0))","v":{"$error":"#VALUE!"}},null,null,null,null,null,null,null,null,null,null,null,null,null,null,null,null,null,null,null,null,null,null,null,null,null,null,null,null,null,null,"Crusader",650,124,0,2,{"$error":"#VALUE!"},{"$error":"#VALUE!"},null,0]
[null,null,null,null,null,null,null,null,null,null,{"$f":"IF(ROUNDDOWN($H$3/O42,0)<=CHOOSE($G$4+$G$5,0.3,0.4,0.5,0.6,0.7,0.8)*P42,ROUNDDOWN($H$3/O42,0),ROUNDDOWN(CHOOSE($G$4+$G$5,0.3,0.4,0.5,0.6,0.7,0.8)*P42,0))","v":{"$error":"#VALUE!"}},{"$f":"IF(K47=0,0,IF(CHOOSE(G4,0.3,0.4,0.5,0.6,0.7)*P42-K47>0,$H$3-O42*K47,0))","v":{"$error":"#VALUE!"}},null,null,null,null,null,null,null,null,null,null,null,null,null,null,null,null,null,null,null,null,null,null,null,null,null,null,null,null,null,null,"Monk",550,107,0,2,{"$error":"#VALUE!"},{"$error":"#VALUE!"},null,0]
[null,null,null,null,null,null,null,null,null,null,{"$f":"IF(ROUNDDOWN($H$3/O43,0)<=CHOOSE($G$4+$G$5,0.3,0.4,0.5,0.6,0.7,0.8)*P43,ROUNDDOWN($H$3/O43,0),ROUNDDOWN(CHOOSE($G$4+$G$5,0.3,0.4,0.5,0.6,0.7,0.8)*P43,0))","v":{"$error":"#VALUE!"}},{"$f":"IF(K48=0,0,IF(CHOOSE(G4,0.3,0.4,0.5,0.6,0.7)*P43-K48>0,$H$3-O43*K48,0))","v":{"$error":"#VALUE!"}},null,null,null,null,null,null,null,null,null,null,null,null,null,null,null,null,null,null,null,null,null,null,null,null,null,null,null,null,null,null,"Ballista",190,44,0,2,{"$error":"#VALUE!"},{"$error":"#VALUE!"},null,0]
[null,null,null,null,null,null,null,null,null,null,{"$f":"IF(ROUNDDOWN($H$3/O44,0)<=CHOOSE($G$4+$G$5,0.3,0.4,0.5,0.6,0.7,0.8)*P44,ROUNDDOWN($H$3/O44,0),ROUNDDOWN(CHOOSE($G$4+$G$5,0.3,0.4,0.5,0.6,0.7,0.8)*P44,0))","v":{"$error":"#VALUE!"}},{"$f":"IF(K49=0,0,IF(CHOOSE(G4,0.3,0.4,0.5,0.6,0.7)*P44-K49>0,$H$3-O44*K49,0))","v":{"$error":"#VALUE!"}},null,null,null,null,null,null,null,null,null,null,null,null,null,null,null,null,null,null,null,null,null,null,null,null,null,null,null,null,null,null,"Pikeman",150,35,0,2,{"$error":"#VALUE!"},{"$error":"#VALUE!"},null,0]
[null,null,null,null,null,null,null,null,null,null,{"$f":"IF(ROUNDDOWN($H$3/O45,0)<=CHOOSE($G$4+$G$5,0.3,0.4,0.5,0.6,0.7,0.8)*P45,ROUNDDOWN($H$3/O45,0),ROUNDDOWN(CHOOSE($G$4+$G$5,0.3,0.4,0.5,0.6,0.7,0.8)*P45,0))","v":{"$error":"#VALUE!"}},{"$f":"IF(K50=0,0,IF(CHOOSE(G4,0.3,0.4,0.5,0.6,0.7)*P45-K50>0,$H$3-O45*K50,0))","v":{"$error":"#VALUE!"}},null,null,null,null,null,null,null,null,null,null,null,null,null,null,null,null,null,null,null,null,null,null,null,null,null,null,null,null,null,null,"Crossbowman",32,9,0,2,{"$error":"#VALUE!"},{"$error":"#VALUE!"},null,0]
[null,null,null,null,null,null,null,null,null,null,null,null,null,null,null,null,null,null,null,null,null,null,null,null,null,null,null,null,null,null,null,null,null,null,null,null,null,null,null,null,null,null,"Squire",26,7,0,2,{"$error":"#VALUE!"},{"$error":"#VALUE!"},null,0]
[null,null,null,null,null,null,null,null,null,null,null,null,null,null,null,null,null,null,null,null,null,null,null,null,null,null,null,null,null,null,null,null,null,null,null,null,null,null,null,null,null,null,"Peasant",15,4,0,2,{"$error":"#VALUE!"},{"$error":"#VALUE!"},null,0]
[{"$f":"SUM(Q:Q)+SUM(X$6:X$1048576)","v":0},null,null,null,null,null,null,null,null,null,null,null,null,null,null,null,null,null,null,null,null,null,null,null,null,null,null,null,null,null,null,null,null,null,null,null,null,null,null,null,null,null,"N E C R O P O L I S",null,null,null,null,null,null,null,0]
[null,null,null,null,null,null,null,null,null,null,null,null,null,null,null,null,null,null,null,null,null,null,null,null,null,null,null,null,null,null,null,null,null,null,null,null,null,null,null,null,null,null,"Dark Champion",4000,1000,0,5,{"$f":"R18","v":{"$error":"#VALUE!"}},{"$f":"S18","v":{"$error":"#VALUE!"}},null,0]
[null,null,null,null,null,null,null,null,null,null,null,null,null,null,null,null,null,null,null,null,null,null,null,null,null,null,null,null,null,null,null,null,null,null,null,null,null,null,null,null,null,null,"Bone Dragon",4000,621,0,5,{"$f":"R19","v":{"$error":"#VALUE!"}},{"$f":"S19","v":{"$error":"#VALUE!"}},null,0]
[null,null,null,null,null,null,null,null,null,null,null,null,null,null,null,null,null,null,null,null,null,null,null,null,null,null,null,null,null,null,null,null,null,null,null,null,null,null,null,null,null,null,"Devil",4000,614,0,5,{"$error":"#VALUE!"},{"$error":"#VALUE!"},null,0]
[null,null,null,null,null,null,null,null,null,null,null,null,null,null,null,null,null,null,null,null,null,null,null,null,null,null,null,null,null,null,null,null,null,null,null,null,null,null,null,null,null,null,"Vampire",1100,275,0,5,{"$error":"#VALUE!"},{"$error":"#VALUE!"},null,0]
[null,null,null,null,null,null,null,null,null,null,null,null,null,null,null,null,null,null,null,null,null,null,null,null,null,null,null,null,null,null,null,null,null,null,null,null,null,null,null,null,null,null,"Venom Spawn",1100,201,0,5,{"$error":"#VALUE!"},{"$error":"#VALUE!"},null,0]
[null,null,null,null,null,null,null,null,null,null,null,null,null,null,null,null,null,null,null,null,null,null,null,null,null,null,null,null,null,null,null,null,null,null,null,null,null,null,null,null,null,null,"Ice Demon",850,157,0,5,{"$error":"#VALUE!"},{"$error":"#VALUE!"},null,0]
[null,null,null,null,null,null,null,null,null,null,null,null,null,null,null,null,null,null,null,null,null,null,null,null,null,null,null,null,null,null,null,null,null,null,null,null,null,null,null,null,null,null,"Cerberus",190,44,0,5,{"$error":"#VALUE!"},{"$error":"#VALUE!"},null,0]
[null,null,null,null,null,null,null,null,null,null,null,null,null,null,null,null,null,null,null,null,null,null,null,null,null,null,null,null,null,null,null,null,null,null,null,null,null,null,null,null,null,null,"Ghost",140,35,0,5,{"$error":"#VALUE!"},{"$error":"#VALUE!"},null,0]
[null,null,null,null,null,null,null,null,null,null,null,null,null,null,null,null,null,null,null,null,null,null,null,null,null,null,null,null,null,null,null,null,null,null,null,null,null,null,null,null,null,null,"Gargoyle",160,38,0,5,{"$error":"#VALUE!"},{"$error":"#VALUE!"},null,0]
[null,null,null,null,null,null,null,null,null,null,null,null,null,null,null,null,null,null,null,null,null,null,null,null,null,null,null,null,null,null,null,null,null,null,null,null,null,null,null,null,null,null,"Mummy",170,28,0,5,{"$error":"#VALUE!"},{"$error":"#VALUE!"},null,0]
[null,null,null,null,null,null,null,null,null,null,null,null,null,null,null,null,null,null,null,null,null,null,null,null,null,null,null,null,null,null,null,null,null,null,null,null,null,null,null,null,null,null,"Skeleton",22,6,0,5,{"$error":"#VALUE!"},{"$error":"#VALUE!"},null,0]
[null,null,null,null,null,null,null,null,null,null,null,null,null,null,null,null,null,null,null,null,null,null,null,null,null,null,null,null,null,null,null,null,null,null,null,null,null,null,null,null,null,null,"Imp",18,5,0,5,{"$error":"#VALUE!"},{"$error":"#VALUE!"},null,0]
[null,null,null,null,null,null,null,null,null,null,null,null,null,null,null,null,null,null,null,null,null,null,null,null,null,null,null,null,null,null,null,null,null,null,null,null,null,null,null,null,null,null,"Zombie",35,8,0,5,{"$error":"#VALUE!"},{"$error":"#VALUE!"},null,0]
[null,null,null,null,null,null,null,null,null,null,null,null,null,null,null,null,null,null,null,null,null,null,null,null,null,null,null,null,null,null,null,null,null,null,null,null,null,null,null,null,null,null,"A S Y L U M",null,null,null,null,null,null,null,0]
[null,null,null,null,null,null,null,null,null,null,null,null,null,null,null,null,null,null,null,null,null,null,null,null,null,null,null,null,null,null,null,null,null,null,null,null,null,null,null,null,null,null,"Black Dragon",8000,1233,0,4,{"$f":"R32","v":{"$error":"#VALUE!"}},{"$f":"S32","v":{"$error":"#VALUE!"}},null,{"$f":"IF(AT68>0,1,0)","v":0}]
[null,null,null,null,null,null,null,null,null,null,null,null,null,null,null,null,null,null,null,null,null,null,null,null,null,null,null,null,null,null,null,null,null,null,null,null,null,null,null,null,null,null,"Hydra",4000,617,0,4,{"$f":"R33","v":{"$error":"#VALUE!"}},{"$f":"S33","v":{"$error":"#VALUE!"}},null,0]
[null,null,null,null,null,null,null,null,null,null,null,null,null,null,null,null,null,null,null,null,null,null,null,null,null,null,null,null,null,null,null,null,null,null,null,null,null,null,null,null,null,null,"Mega",8000,1500,0,4,{"$error":"#VALUE!"},{"$error":"#VALUE!"},null,0]
[null,null,null,null,null,null,null,null,null,null,null,null,null,null,null,null,null,null,null,null,null,null,null,null,null,null,null,null,null,null,null,null,null,null,null,null,null,null,null,null,null,null,"Goblin Knight",1000,157,0,4,{"$error":"#VALUE!"},{"$error":"#VALUE!"},null,0]
[null,null,null,null,null,null,null,null,null,null,null,null,null,null,null,null,null,null,null,null,null,null,null,null,null,null,null,null,null,null,null,null,null,null,null,null,null,null,null,null,null,null,"Efreet",850,161,0,4,{"$error":"#VALUE!"},{"$error":"#VALUE!"},null,0]
[null,null,null,null,null,null,null,null,null,null,null,null,null,null,null,null,null,null,null,null,null,null,null,null,null,null,null,null,null,null,null,null,null,null,null,null,null,null,null,null,null,null,"Nightmare",800,148,0,4,{"$error":"#VALUE!"},{"$error":"#VALUE!"},null,0]
[null,null,null,null,null,null,null,null,null,null,null,null,null,null,null,null,null,null,null,null,null,null,null,null,null,null,null,null,null,null,null,null,null,null,null,null,null,null,null,null,null,null,"Minotaur",230,53,0,4,{"$error":"#VALUE!"},{"$error":"#VALUE!"},null,0]
[null,null,null,null,null,null,null,null,null,null,null,null,null,null,null,null,null,null,null,null,null,null,null,null,null,null,null,null,null,null,null,null,null,null,null,null,null,null,null,null,null,null,"Medusa",220,52,0,4,{"$error":"#VALUE!"},{"$error":"#VALUE!"},null,0]
[null,null,null,null,null,null,null,null,null,null,null,null,null,null,null,null,null,null,null,null,null,null,null,null,null,null,null,null,null,null,null,null,null,null,null,null,null,null,null,null,null,null,"Troll",230,54,0,4,{"$error":"#VALUE!"},{"$error":"#VALUE!"},null,0]
[null,null,null,null,null,null,null,null,null,null,null,null,null,null,null,null,null,null,null,null,null,null,null,null,null,null,null,null,null,null,null,null,null,null,null,null,null,null,null,null,null,null,"Beholder",220,51,0,4,{"$error":"#VALUE!"},{"$error":"#VALUE!"},null,0]
[null,null,null,null,null,null,null,null,null,null,null,null,null,null,null,null,null,null,null,null,null,null,null,null,null,null,null,null,null,null,null,null,null,null,null,null,null,null,null,null,null,null,"Orc",34,10,0,4,{"$error":"#VALUE!"},{"$error":"#VALUE!"},null,0]
[null,null,null,null,null,null,null,null,null,null,null,null,null,null,null,null,null,null,null,null,null,null,null,null,null,null,null,null,null,null,null,null,null,null,null,null,null,null,null,null,null,null,"Bandit",20,6,0,4,{"$error":"#VALUE!"},{"$error":"#VALUE!"},null,0]
[null,null,null,null,null,null,null,null,null,null,null,null,null,null,null,null,null,null,null,null,null,null,null,null,null,null,null,null,null,null,null,null,null,null,null,null,null,null,null,null,null,null,"Troglodyte",28,8,0,4,{"$error":"#VALUE!"},{"$error":"#VALUE!"},null,0]
[null,null,null,null,null,null,null,null,null,null,null,null,null,null,null,null,null,null,null,null,null,null,null,null,null,null,null,null,null,null,null,null,null,null,null,null,null,null,null,null,null,null,"Pirate",22,7,0,4,{"$error":"#VALUE!"},{"$error":"#VALUE!"},null,0]
[]
[]
[]
[]
[]
[]
[]
[]
[]
[]
[]
[]
[]
[]
[]
[]
[]
[]
[]
[]
[]
[]
[]
[]
[]
[]
[null,null,null,null,null,null,null,null,null,null,null,null,null,null,null,null,null,null,null,null,null,null,null,null,null,null,null,null,null,null,null,null,null,null,null,null,null,null,null,null,null,null,{"$f":"T72","v":0},0,0,0]
[null,null,null,null,null,null,null,null,null,null,null,null,null,null,null,null,null,null,null,null,null,null,null,null,null,null,null,null,null,null,null,null,null,null,null,null,null,null,null,null,null,null,0,0,0,0]